fUSD/lending_fUSD_20240422
["ID","MTS","AMOUNT","RATE_DAILY","PERIOD"]
[323189459,1713796251411,-500.0,0.00013698,2]
[323189460,1713796251421,-5647.14,0.00013698,2]
[323189461,1713796251431,-561.46,0.00013698,2]
[323189462,1713796251441,-630.04,0.00013698,2]
[323189463,1713796251451,-618.04,0.00013698,2]
[323189464,1713796251461,-16019.21,0.00013698,2]
[323189465,1713796251471,-763.84,0.00013698,2]
[323189466,1713796251481,-764.71,0.00013698,2]
[323189467,1713796251491,-500.0,0.00013698,2]
[323189468,1713796251501,-500.0,0.00013698,2]
[323189469,1713796251511,-13874.48,0.00013698,2]
[323189470,1713796251520,-500.0,0.00013698,2]
[323189471,1713796251530,-500.0,0.00013698,2]
[323189472,1713796251540,-538.41,0.00013698,2]
[323189473,1713796251549,-3429.63,0.00013698,2]
[323189474,1713796251559,-500.0,0.00013698,2]
[323189475,1713796251568,-500.0,0.00013698,2]
[323189476,1713796251580,-500.0,0.00013698,2]
[323189477,1713796251589,-500.0,0.00013698,2]
[323189478,1713796251599,-727.29,0.00013698,2]
[323189479,1713796251610,-771.49,0.00013698,2]
[323189480,1713796251620,-500.0,0.00013698,2]
[323189481,1713796251630,-621.88,0.00013698,2]
[323189482,1713796251640,-500.0,0.00013698,2]
[323189483,1713796251650,-562.12,0.00013698,2]
[323189484,1713796251660,-8699.64,0.00013698,2]
[323189485,1713796251670,-1631.8,0.00013698,2]
[323189486,1713796251679,-500.0,0.00013698,2]
[323189487,1713796251689,-711.47,0.00013698,2]
[323189488,1713796251699,-14826.36,0.00013698,2]
[323189489,1713796251709,-500.0,0.00013698,2]
[323189490,1713796251719,-10220.79,0.00013698,2]
[323189491,1713796251729,-1562.41,0.00013698,2]
[323189492,1713796251738,-4182.77,0.00013698,2]
[323189493,1713796251748,-801.97,0.00013698,2]
[323189494,1713796251757,-500.0,0.00013698,2]
[323189495,1713796251767,-1043.97,0.00013698,2]
[323189496,1713796251777,-500.0,0.00013698,2]
[323189497,1713796251786,-1447.88,0.00013698,2]
[323189498,1713796251795,-1369.63,0.00013698,2]
[323189499,1713796251805,-804.15,0.00013698,2]
[323189500,1713796251815,-500.0,0.00013698,2]
[323189501,1713796251826,-500.0,0.00013698,2]
[323189502,1713796251835,-1609.03,0.00013698,2]
[323189503,1713796251845,-500.0,0.00013698,2]
[323189504,1713796251854,-500.0,0.00013698,2]
[323189505,1713796251863,-500.0,0.00013698,2]
[323189506,1713796251873,-200.0,0.00013699,2]
[323189507,1713796251883,-500.0,0.00013699,2]
[323189508,1713796251891,-485.42,0.00013699,2]
[323189509,1713796251899,-200.0,0.00013699,2]
[323189510,1713796251908,-150.89,0.00013699,2]
[323189511,1713796251918,-250.0,0.000137,2]
[323189512,1713796251928,-155.92,0.000137,2]
[323189513,1713796251937,-7922.49600316,0.00013708,2]
[323189514,1713796251947,-200.0,0.00013723,2]
[323189515,1713796251957,-1000.0,0.00013723,2]
[323189516,1713796251967,-300.0,0.00013723,2]
[323189517,1713796251976,-500.0,0.00013723,2]
[323189518,1713796251986,-200.0,0.00013723,2]
[323189519,1713796251996,-7922.49600316,0.00013735,2]
[323189520,1713796252006,-164.65244567,0.00013749,2]
[323189521,1713796252016,-150.0,0.00013756,2]
[323189522,1713796252026,-7922.49600316,0.00013763,2]
[323189523,1713796252036,-150.0,0.00013767,2]
[323189524,1713796252046,-150.0,0.00013773,2]
[323189525,1713796252055,-500.0,0.00013786,2]
[323189526,1713796252066,-7922.49600316,0.0001379,2]
[323189527,1713796252077,-500.0,0.00013794,2]
[323189528,1713796252088,-500.0,0.00013803,2]
[323189529,1713796252098,-500.0,0.00013812,2]
[323189530,1713796252108,-1000.0,0.00013813,2]
[323189531,1713796252118,-150.0,0.00013815,2]
[323189532,1713796252127,-7922.49600316,0.00013818,2]
[323189533,1713796252138,-500.0,0.00013821,2]
[323189534,1713796252148,-150.0,0.00013824,2]
[323189535,1713796252158,-500.0,0.0001383,2]
[323189536,1713796252168,-923.94977,0.0001383,2]
[323189537,1713796252178,-500.0,0.00013838,2]
[323189538,1713796252188,-7922.49600316,0.00013845,2]
[323189539,1713796252200,-500.0,0.00013847,2]
[323189540,1713796252210,-500.0,0.00013856,2]
[323189541,1713796252220,-200.0,0.00013856,2]
[323189542,1713796252229,-200.0,0.00013856,2]
[323189543,1713796252240,-354.18,0.00013862,2]
[323189544,1713796252250,-500.0,0.00013865,2]
[323189545,1713796252260,-7922.49600316,0.00013873,2]
[323189546,1713796252270,-500.0,0.00013874,2]
[323189547,1713796252281,-5800.0,0.00013875,2]
[323189548,1713796252291,-500.0,0.00013882,2]
[323189549,1713796252301,-5800.0,0.00013883,2]
[323189550,1713796252311,-500.0,0.00013891,2]
[323189551,1713796252320,-5800.0,0.00013891,2]
[323189552,1713796252334,-5350.0,0.000139,13]
[323189553,1713796252343,-4844.2,0.000139,15]
[323189554,1713796252352,-59499.51288749,0.000139,2]
[323189555,1713796252361,-160.0,0.000139,2]
[323189556,1713796252370,-500.0,0.000139,2]
[323189557,1713796252380,-996.13310653,0.000139,2]
[323189558,1713796252389,-164.65244567,0.000139,2]
[323189559,1713796252399,-5800.0,0.000139,2]
[323189560,1713796252410,-7922.49600316,0.000139,2]
[323189561,1713796252420,-150.0,0.00013948,2]
[323189562,1713796252429,-153.5517654,0.00013958,2]
[323189563,1713796252440,-48189.1517549,0.00013958,2]
[323189564,1713796252451,-2039.9235048,0.00013958,2]
[323189565,1713796252462,-11791.5159976,0.00013958,2]
[323189566,1713796252471,-641.91429218,0.00013958,2]
[323189567,1713796252482,-42939.7541175,0.00013958,2]
[323189568,1713796252491,-1202.3109452,0.00013958,2]
[323189569,1713796252501,-11984.2543505,0.00013958,2]
[323189570,1713796252511,-5592.6413711,0.00013958,2]
[323189571,1713796252520,-19496.21587412,0.00013968,2]
[323189572,1713796252530,-151.0,0.00013968,2]
[323189573,1713796252540,-809104.19116941,0.00013969,2]
[323189574,1713796252550,-20318.0721423,0.00013969,2]
[323189575,1713796252560,-151.0,0.00013969,2]
[323189576,1713796252570,-151.0,0.00013969,2]
[323189577,1713796252581,-151.0,0.00013969,2]
[323189578,1713796252593,-151.0,0.00013969,2]
[323189579,1713796252603,-151.0,0.00013969,2]
[323189580,1713796252613,-151.0,0.00013969,2]
[323189581,1713796252623,-151.0,0.00013969,2]
[323189582,1713796252633,-151.0,0.00013969,2]
[323189583,1713796252642,-218.962607,0.00013969,2]
[323189584,1713796252652,-151.0,0.00013969,2]
[323189585,1713796252662,-151.0,0.00013969,2]
[323189586,1713796252672,-151.0,0.00013969,2]
[323189587,1713796252685,-151.0,0.00013969,2]
[323189588,1713796252695,-151.0,0.00013969,2]
[323189589,1713796252705,-207074.42804303,0.0001397,2]
[323189590,1713796252715,-632284.82217668,0.0001397,2]
[323189591,1713796252726,-50080.38560381,0.0001397,2]
[323189592,1713796252735,-155.837012,0.0001397,2]
[323189593,1713796252745,-151.0,0.0001397,2]
[323189594,1713796252754,-151.0,0.0001397,2]
[323189595,1713796252766,-151.0,0.0001397,2]
[323189596,1713796252778,-151.0,0.0001397,2]
[323189597,1713796252787,-151.0,0.0001397,2]
[323189598,1713796252798,-203.224129,0.0001397,2]
[323189599,1713796252808,-292.35,0.0001397,2]
[323189600,1713796252817,-151.0,0.0001397,2]
[323189601,1713796252829,-151.0,0.0001397,2]
[323189602,1713796252838,-151.0,0.0001397,2]
[323189603,1713796252847,-151.0,0.0001397,2]
[323189604,1713796252856,-500.0,0.00013972,2]
[323189605,1713796252866,-500.0,0.00013972,2]
[323189606,1713796252876,-500.0,0.00013972,2]
[323189607,1713796252885,-498.84989153,0.00013972,2]
[323189608,1713796252895,-500.0,0.00013972,2]
[323189609,1713796252906,-487.41615886,0.00013972,2]
[323189610,1713796252915,-500.0,0.00013972,2]
[323189611,1713796252925,-200.0,0.00013972,10]
[323189612,1713796252936,-500.0,0.00013972,2]
[323189613,1713796252946,-213.20488681,0.00013972,2]
[323189614,1713796252957,-500.0,0.00013972,2]
[323189615,1713796252967,-500.0,0.00013972,2]
[323189616,1713796252976,-500.0,0.00013972,2]
[323189617,1713796252986,-523.57,0.00013972,2]
[323189618,1713796252996,-867.26,0.00013972,2]
[323189619,1713796253007,-500.0,0.00013972,2]
[323189620,1713796253017,-741.64,0.00013972,2]
[323189621,1713796253026,-798.71,0.00013972,2]
[323189622,1713796253036,-500.0,0.00013972,2]
[323189623,1713796253046,-1643.98,0.00013972,2]
[323189624,1713796253055,-500.0,0.00013972,2]
[323189625,1713796253065,-632.85,0.00013972,2]
[323189626,1713796253075,-670.83,0.00013972,2]
[323189627,1713796253085,-500.0,0.00013972,2]
[323189628,1713796253095,-460.53546447,0.00013972,2]
[323189629,1713796253105,-500.0,0.00013972,2]
[323189630,1713796253114,-500.0,0.00013972,2]
[323189631,1713796253124,-500.0,0.00013972,2]
[323189632,1713796253134,-1801.75,0.00013972,2]
[323189633,1713796253144,-580.49,0.00013972,2]
[323189634,1713796253154,-500.0,0.00013972,2]
[323189635,1713796253163,-1317.48,0.00013972,2]
[323189636,1713796253173,-502.78,0.00013972,2]
[323189637,1713796253182,-980.3,0.00013972,2]
[323189638,1713796253191,-500.0,0.00013972,2]
[323189639,1713796253206,-717.09,0.00013972,2]
[323189640,1713796253215,-500.0,0.00013972,2]
[323189641,1713796253225,-595.24,0.00013972,2]
[323189642,1713796253234,-500.0,0.00013972,2]
[323189643,1713796253244,-688.29,0.00013972,2]
[323189644,1713796253254,-309.90720311,0.00013972,2]
[323189645,1713796253264,-500.0,0.00013972,2]
[323189646,1713796253275,-500.0,0.00013972,2]
[323189647,1713796253285,-500.0,0.00013972,2]
[323189648,1713796253295,-500.0,0.00013972,2]
[323189649,1713796253304,-844.5,0.00013972,2]
[323189650,1713796253314,-1546.48,0.00013972,2]
[323189651,1713796253323,-579.58,0.00013972,2]
[323189652,1713796253334,-500.0,0.00013972,2]
[323189653,1713796253344,-500.0,0.00013972,2]
[323189654,1713796253355,-500.0,0.00013972,2]
[323189655,1713796253365,-500.0,0.00013972,2]
[323189656,1713796253374,-610.84,0.00013972,2]
[323189657,1713796253383,-500.0,0.00013972,2]
[323189658,1713796253393,-1046.87,0.00013972,2]
[323189659,1713796253403,-500.0,0.00013972,2]
[323189660,1713796253413,-500.0,0.00013972,2]
[323189661,1713796253423,-884.0,0.00013972,2]
[323189662,1713796253434,-655.11,0.00013972,2]
[323189663,1713796253443,-516.21,0.00013972,2]
[323189664,1713796253453,-500.0,0.00013972,2]
[323189665,1713796253463,-1142.83,0.00013972,2]
[323189666,1713796253473,-500.0,0.00013972,2]
[323189667,1713796253482,-812.14,0.00013972,2]
[323189668,1713796253492,-378.65708808,0.00013972,2]
[323189669,1713796253502,-654.27,0.00013972,2]
[323189670,1713796253511,-777.85,0.00013972,2]
[323189671,1713796253521,-500.0,0.00013972,2]
[323189672,1713796253531,-500.0,0.00013972,2]
[323189673,1713796253540,-541.8,0.00013972,2]
[323189674,1713796253550,-500.0,0.00013972,2]
[323189675,1713796253560,-500.0,0.00013972,2]
[323189676,1713796253570,-562.23,0.00013972,2]
[323189677,1713796253580,-500.0,0.00013972,2]
[323189678,1713796253838,-802.67,0.00013972,2]
[323189679,1713796253890,-500.0,0.00013972,2]
[323189680,1713796253900,-500.0,0.00013972,2]
[323189681,1713796253909,-516.95,0.00013972,2]
[323189682,1713796253918,-500.0,0.00013972,2]
[323189683,1713796253927,-652.61,0.00013972,2]
[323189684,1713796253937,-500.0,0.00013972,2]
[323189685,1713796253948,-500.0,0.00013972,2]
[323189686,1713796253958,-500.0,0.00013972,2]
[323189687,1713796253967,-636.54,0.00013972,2]
[323189688,1713796253976,-500.0,0.00013972,2]
[323189689,1713796253986,-500.0,0.00013972,2]
[323189690,1713796253995,-581.34,0.00013972,2]
[323189691,1713796254005,-500.0,0.00013972,2]
[323189692,1713796254015,-500.0,0.00013972,2]
[323189693,1713796254025,-500.0,0.00013972,2]
[323189694,1713796254034,-500.0,0.00013972,2]
[323189695,1713796254043,-1223.42,0.00013972,2]
[323189696,1713796254053,-563.68,0.00013972,2]
[323189697,1713796254062,-636.22100924,0.00013972,2]
[323189698,1713796254071,-500.0,0.00013972,2]
[323189699,1713796254081,-500.0,0.00013972,2]
[323189700,1713796254090,-602.73,0.00013972,2]
[323189701,1713796254100,-821.8,0.00013972,2]
[323189702,1713796254110,-719.37,0.00013972,2]
[323189703,1713796254120,-500.0,0.00013972,2]
[323189704,1713796254130,-500.0,0.00013972,2]
[323189705,1713796254140,-621.21,0.00013972,2]
[323189706,1713796254150,-562.1,0.00013972,2]
[323189707,1713796254160,-734.56,0.00013972,2]
[323189708,1713796254170,-510.88,0.00013972,2]
[323189709,1713796254179,-500.0,0.00013972,2]
[323189710,1713796254190,-625.62,0.00013972,2]
[323189711,1713796254204,-628.83,0.00013972,2]
[323189712,1713796254214,-500.0,0.00013972,2]
[323189713,1713796254228,-500.0,0.00013972,2]
[323189714,1713796254238,-511.54,0.00013972,2]
[323189715,1713796254248,-500.0,0.00013972,2]
[323189716,1713796254257,-740.77,0.00013972,2]
[323189717,1713796254267,-1046.12,0.00013972,2]
[323189718,1713796254281,-814.03,0.00013972,2]
[323189719,1713796254290,-738.56,0.00013972,2]
[323189720,1713796254300,-500.0,0.00013972,2]
[323189721,1713796254310,-500.0,0.00013972,2]
[323189722,1713796254319,-500.0,0.00013972,2]
[323189723,1713796254329,-1545.48,0.00013972,2]
[323189724,1713796254339,-500.0,0.00013972,2]
[323189725,1713796254348,-500.0,0.00013972,2]
[323189726,1713796254357,-500.0,0.00013972,2]
[323189727,1713796254367,-500.0,0.00013972,2]
[323189728,1713796254376,-500.0,0.00013972,2]
[323189729,1713796254385,-500.0,0.00013972,2]
[323189730,1713796254394,-662.22,0.00013972,2]
[323189731,1713796254404,-500.0,0.00013972,2]
[323189732,1713796254413,-500.0,0.00013972,2]
[323189733,1713796254423,-532.81,0.00013972,2]
[323189734,1713796254432,-500.0,0.00013972,2]
[323189735,1713796254441,-1276.81,0.00013972,2]
[323189736,1713796254453,-590.19,0.00013972,2]
[323189737,1713796254465,-500.0,0.00013972,2]
[323189738,1713796254475,-897.76,0.00013972,2]
[323189739,1713796254484,-500.0,0.00013972,2]
[323189740,1713796254495,-1133.16,0.00013972,2]
[323189741,1713796254505,-668.49,0.00013972,2]
[323189742,1713796254514,-651.2,0.00013972,2]
[323189743,1713796254523,-711.0,0.00013972,2]
[323189744,1713796254532,-500.0,0.00013972,2]
[323189745,1713796254541,-918.55,0.00013972,2]
[323189746,1713796254550,-500.0,0.00013972,2]
[323189747,1713796254560,-500.0,0.00013972,2]
[323189748,1713796254569,-500.0,0.00013972,2]
[323189749,1713796254580,-566.0,0.00013972,2]
[323189750,1713796254590,-607.78,0.00013972,2]
[323189751,1713796254600,-500.0,0.00013972,2]
[323189752,1713796254611,-840.92,0.00013972,2]
[323189753,1713796254621,-560.26,0.00013972,2]
[323189754,1713796254631,-667.1,0.00013972,2]
[323189755,1713796254642,-1089.73,0.00013972,2]
[323189756,1713796254653,-500.0,0.00013972,2]
[323189757,1713796254664,-500.0,0.00013972,2]
[323189758,1713796254675,-500.0,0.00013972,2]
[323189759,1713796254686,-500.0,0.00013972,2]
[323189760,1713796254695,-500.0,0.00013972,2]
[323189761,1713796254706,-500.0,0.00013972,2]
[323189762,1713796254715,-500.0,0.00013972,2]
[323189763,1713796254726,-1091.75,0.00013972,2]
[323189764,1713796254737,-905.97,0.00013972,2]
[323189765,1713796254746,-500.0,0.00013972,2]
[323189766,1713796254756,-1495.38,0.00013972,2]
[323189767,1713796254766,-500.0,0.00013972,2]
[323189768,1713796254778,-500.0,0.00013972,2]
[323189769,1713796254788,-841.65,0.00013972,2]
[323189770,1713796254798,-500.0,0.00013972,2]
[323189771,1713796254808,-500.0,0.00013972,2]
[323189772,1713796254818,-500.0,0.00013972,2]
[323189773,1713796254828,-1239.72,0.00013972,2]
[323189774,1713796254838,-500.0,0.00013972,2]
[323189775,1713796254846,-500.0,0.00013972,2]
[323189776,1713796254856,-784.01,0.00013972,2]
[323189777,1713796254868,-717.02,0.00013972,2]
[323189778,1713796254877,-500.0,0.00013972,2]
[323189779,1713796254887,-500.0,0.00013972,2]
[323189780,1713796254897,-1216.91,0.00013972,2]
[323189781,1713796254907,-1745.95,0.00013972,2]
[323189782,1713796254916,-500.0,0.00013972,2]
[323189783,1713796254927,-987.82,0.00013972,2]
[323189784,1713796254937,-500.0,0.00013972,2]
[323189785,1713796254946,-734.92,0.00013972,2]
[323189786,1713796254956,-699.61,0.00013972,2]
[323189787,1713796254966,-500.0,0.00013972,2]
[323189788,1713796254976,-754.44,0.00013972,2]
[323189789,1713796254985,-500.0,0.00013972,2]
[323189790,1713796254995,-942.64,0.00013972,2]
[323189791,1713796255004,-500.0,0.00013972,2]
[323189792,1713796255013,-1022.77,0.00013972,2]
[323189793,1713796255023,-500.0,0.00013972,2]
[323189794,1713796255032,-536.28,0.00013972,2]
[323189795,1713796255041,-656.56,0.00013972,2]
[323189796,1713796255050,-500.0,0.00013972,2]
[323189797,1713796255060,-603.44,0.00013972,2]
[323189798,1713796255069,-500.0,0.00013972,2]
[323189799,1713796255079,-682.19,0.00013972,2]
[323189800,1713796255090,-1056.03,0.00013972,2]
[323189801,1713796255100,-500.0,0.00013972,2]
[323189802,1713796255109,-500.0,0.00013972,2]
[323189803,1713796255119,-869.69,0.00013972,2]
[323189804,1713796255129,-500.0,0.00013972,2]
[323189805,1713796255138,-1139.0,0.00013972,2]
[323189806,1713796255148,-683.19,0.00013972,2]
[323189807,1713796255158,-650.32,0.00013972,2]
[323189808,1713796255168,-1497.34,0.00013972,2]
[323189809,1713796255177,-500.0,0.00013972,2]
[323189810,1713796255186,-500.0,0.00013972,2]
[323189811,1713796255196,-500.0,0.00013972,2]
[323189812,1713796255207,-500.0,0.00013972,2]
[323189813,1713796255217,-606.56,0.00013972,2]
[323189814,1713796255227,-969.07,0.00013972,2]
[323189815,1713796255236,-1251.17,0.00013972,2]
[323189816,1713796255246,-1605.13,0.00013972,2]
[323189817,1713796255255,-358.01155487,0.00013972,2]
[323189818,1713796255264,-500.0,0.00013972,2]
[323189819,1713796255273,-500.0,0.00013972,2]
[323189820,1713796255283,-1255.29,0.00013972,2]
[323189821,1713796255293,-500.0,0.00013972,2]
[323189822,1713796255302,-640.69,0.00013972,2]
[323189823,1713796255311,-762.75,0.00013972,2]
[323189824,1713796255320,-687.84,0.00013972,2]
[323189825,1713796255331,-598.69,0.00013972,2]
[323189826,1713796255340,-500.0,0.00013972,2]
[323189827,1713796255350,-500.0,0.00013972,2]
[323189828,1713796255359,-500.0,0.00013972,2]
[323189829,1713796255368,-500.0,0.00013972,2]
[323189830,1713796255377,-734.07,0.00013972,2]
[323189831,1713796255386,-520.13,0.00013972,2]
[323189832,1713796255396,-500.0,0.00013972,2]
[323189833,1713796255405,-970.66,0.00013972,2]
[323189834,1713796255414,-500.0,0.00013972,2]
[323189835,1713796255424,-500.0,0.00013972,2]
[323189836,1713796255434,-833.8,0.00013972,2]
[323189837,1713796255443,-500.0,0.00013972,2]
[323189838,1713796255452,-500.0,0.00013972,2]
[323189839,1713796255462,-500.0,0.00013972,2]
[323189840,1713796255472,-500.0,0.00013972,2]
[323189841,1713796255481,-500.0,0.00013972,2]
[323189842,1713796255492,-500.0,0.00013972,2]
[323189843,1713796255501,-500.0,0.00013972,2]
[323189844,1713796255511,-868.65,0.00013972,2]
[323189845,1713796255521,-859.22,0.00013972,2]
[323189846,1713796255531,-1270.72,0.00013972,2]
[323189847,1713796255541,-500.0,0.00013972,2]
[323189848,1713796255550,-500.0,0.00013972,2]
[323189849,1713796255559,-962.32,0.00013972,2]
[323189850,1713796255569,-500.0,0.00013972,2]
[323189851,1713796255581,-500.0,0.00013972,2]
[323189852,1713796255591,-500.0,0.00013972,2]
[323189853,1713796255603,-519.66,0.00013972,2]
[323189854,1713796255612,-764.76,0.00013972,2]
[323189855,1713796255622,-500.0,0.00013972,2]
[323189856,1713796255631,-357.56036632,0.00013972,2]
[323189857,1713796255641,-500.0,0.00013972,2]
[323189858,1713796255651,-500.0,0.00013972,2]
[323189859,1713796255660,-500.0,0.00013972,2]
[323189860,1713796255670,-1118.13,0.00013972,2]
[323189861,1713796255680,-1031.56,0.00013972,2]
[323189862,1713796255689,-500.0,0.00013972,2]
[323189863,1713796255699,-500.0,0.00013972,2]
[323189864,1713796255709,-1019.28,0.00013972,2]
[323189865,1713796255718,-1682.51,0.00013972,2]
[323189866,1713796255727,-1621.1,0.00013972,2]
[323189867,1713796255737,-500.0,0.00013972,2]
[323189868,1713796255746,-500.0,0.00013972,2]
[323189869,1713796255755,-195.05,0.00013972,2]
[323189870,1713796255765,-563.58,0.00013972,2]
[323189871,1713796255775,-500.0,0.00013972,2]
[323189872,1713796255785,-500.0,0.00013972,2]
[323189873,1713796255794,-500.0,0.00013972,2]
[323189874,1713796255805,-500.0,0.00013972,2]
[323189875,1713796255814,-500.0,0.00013972,2]
[323189876,1713796255824,-1205.2,0.00013972,2]
[323189877,1713796255834,-500.0,0.00013972,2]
[323189878,1713796255843,-1556.36,0.00013972,2]
[323189879,1713796255853,-531.23,0.00013972,2]
[323189880,1713796255863,-1785.02,0.00013972,2]
[323189881,1713796255873,-1043.75,0.00013972,2]
[323189882,1713796255883,-500.0,0.00013972,2]
[323189883,1713796255892,-500.0,0.00013972,2]
[323189884,1713796255902,-1668.14,0.00013972,2]
[323189885,1713796255911,-500.0,0.00013972,2]
[323189886,1713796255921,-500.0,0.00013972,2]
[323189887,1713796255930,-500.0,0.00013972,2]
[323189888,1713796255942,-500.0,0.00013972,2]
[323189889,1713796255952,-970.18,0.00013972,2]
[323189890,1713796255961,-719.58,0.00013972,2]
[323189891,1713796255971,-649.39102887,0.00013972,2]
[323189892,1713796255981,-500.0,0.00013972,2]
[323189893,1713796255992,-750.78,0.00013972,2]
[323189894,1713796256002,-500.0,0.00013972,2]
[323189895,1713796256012,-500.0,0.00013972,2]
[323189896,1713796256021,-500.0,0.00013972,2]
[323189897,1713796256031,-1007.84,0.00013972,2]
[323189898,1713796256040,-500.0,0.00013972,2]
[323189899,1713796256049,-500.0,0.00013972,2]
[323189900,1713796256059,-681.96,0.00013972,2]
[323189901,1713796256069,-536.99,0.00013972,2]
[323189902,1713796256078,-500.0,0.00013972,2]
[323189903,1713796256088,-500.0,0.00013972,2]
[323189904,1713796256097,-1457.06,0.00013972,2]
[323189905,1713796256106,-828.62,0.00013972,2]
[323189906,1713796256116,-709.57,0.00013972,2]
[323189907,1713796256125,-1592.02,0.00013972,2]
[323189908,1713796256135,-907.31,0.00013972,2]
[323189909,1713796256144,-500.0,0.00013972,2]
[323189910,1713796256154,-1262.34,0.00013972,2]
[323189911,1713796256163,-500.0,0.00013972,2]
[323189912,1713796256172,-500.0,0.00013972,2]
[323189913,1713796256181,-785.03,0.00013972,2]
[323189914,1713796256191,-500.0,0.00013972,2]
[323189915,1713796256291,-620.76,0.00013972,2]
[323189916,1713796256300,-1328.87,0.00013972,2]
[323189917,1713796256309,-622.61,0.00013972,2]
[323189918,1713796256318,-500.0,0.00013972,2]
[323189919,1713796256327,-554.0,0.00013972,2]
[323189920,1713796256337,-2843.11,0.00013972,2]
[323189921,1713796256346,-1381.06,0.00013972,2]
[323189922,1713796256355,-2613.26,0.00013972,2]
[323189923,1713796256364,-500.0,0.00013972,2]
[323189924,1713796256373,-500.0,0.00013972,2]
[323189925,1713796256382,-500.0,0.00013972,2]
[323189926,1713796256391,-500.0,0.00013972,2]
[323189927,1713796256400,-1174.89,0.00013972,2]
[323189928,1713796256409,-1045.85,0.00013972,2]
[323189929,1713796256418,-500.0,0.00013972,2]
[323189930,1713796256426,-1487.11,0.00013972,2]
[323189931,1713796256435,-678.06,0.00013972,2]
[323189932,1713796256444,-1347.63,0.00013972,2]
[323189933,1713796256453,-500.0,0.00013972,2]
[323189934,1713796256462,-1455.53,0.00013972,2]
[323189935,1713796256472,-677.11,0.00013972,2]
[323189936,1713796256481,-559.0496627,0.00013972,2]
[323189937,1713796256490,-500.0,0.00013972,2]
[323189938,1713796256499,-623.87,0.00013972,2]
[323189939,1713796256507,-500.0,0.00013972,2]
[323189940,1713796256516,-1793.29,0.00013972,2]
[323189941,1713796256525,-500.0,0.00013972,2]
[323189942,1713796256535,-500.0,0.00013972,2]
[323189943,1713796256543,-500.0,0.00013972,2]
[323189944,1713796256552,-2319.07,0.00013972,2]
[323189945,1713796256561,-2128.86,0.00013972,2]
[323189946,1713796256570,-500.0,0.00013972,2]
[323189947,1713796256581,-500.0,0.00013972,2]
[323189948,1713796256590,-777.88,0.00013972,2]
[323189949,1713796256598,-884.48,0.00013972,2]
[323189950,1713796256608,-500.0,0.00013972,2]
[323189951,1713796256616,-500.0,0.00013972,2]
[323189952,1713796256626,-3036.92,0.00013972,2]
[323189953,1713796256635,-500.0,0.00013972,2]
[323189954,1713796256644,-305.97385788,0.00013972,2]
[323189955,1713796256653,-1888.19,0.00013972,2]
[323189956,1713796256662,-744.84,0.00013972,2]
[323189957,1713796256670,-1411.7,0.00013972,2]
[323189958,1713796256679,-1782.21,0.00013972,2]